fUSD/lending_fUSD_20251220
["ID","MTS","AMOUNT","RATE_DAILY","PERIOD"]
[399267856,1766224238566,-449.97272248,0.00013699,2]
[399267857,1766224238575,-500.0,0.00013699,2]
[399267858,1766224238584,-199.08450438,0.00013699,2]
[399267859,1766224238593,-500.0,0.00013699,2]
[399267860,1766224238603,-555.5252472,0.00013699,2]
[399267861,1766224238612,-500.0,0.00013773,2]
[399267862,1766224238622,-169.28855325,0.00013773,2]
[399267863,1766224238631,-500.0,0.00013773,2]
[399267864,1766224238641,-500.0,0.00013773,2]
[399267866,1766224238650,-249.0,0.00013829,2]
[399267868,1766224238659,-200.0,0.00013829,2]
[399267869,1766224238668,-536.41802195,0.00013829,2]
[399267870,1766224238677,-166.66,0.00013836,2]
[399267871,1766224238686,-847.79424943,0.00013966,2]
[399267872,1766224238695,-5013.35526117,0.00013966,2]
[399267873,1766224238705,-166.66,0.00013973,2]
[399267874,1766224238714,-166.66,0.0001411,2]
[399267875,1766224238723,-166.66,0.00014247,2]
[399267876,1766224238732,-1000.0,0.00014321,2]
[399267877,1766224238743,-1000.0,0.00014321,2]
[399267878,1766224238759,-1000.0,0.00014321,2]
[399267879,1766224238778,-847.79424943,0.00014333,2]
[399267880,1766224238797,-5013.35526117,0.00014333,2]
[399267881,1766224238809,-207.4,0.00014376,2]
[399267882,1766224238819,-166.66,0.00014384,2]
[399267883,1766224238828,-1000.0,0.00014592,2]
[399267884,1766224238837,-2145.48,0.00014696,2]
[399267885,1766224238846,-183.35200331,0.00014699,2]
[399267886,1766224238855,-847.79424943,0.00014699,2]
[399267887,1766224238865,-1609.34995974,0.00014868,2]
[399267888,1766224238875,-1355.16426766,0.00014868,2]
[399267889,1766224238885,-1500.0,0.00014868,2]
[399267890,1766224238894,-847.79424943,0.00015066,2]
[399267891,1766224238904,-707.69,0.00015234,2]
[399267892,1766224238913,-250.0,0.00015255,2]
[399267893,1766224238922,-155.64705311,0.00015288,2]
[399267894,1766224238933,-150.0,0.00015288,2]
[399267895,1766224238942,-157.75435091,0.00015288,2]
[399267896,1766224238951,-166.66,0.00015391,2]
[399267897,1766224238960,-1503.12423045,0.00015416,2]
[399267898,1766224238970,-847.79424943,0.00015433,2]
[399267899,1766224238979,-200.0,0.00015675,2]
[399267900,1766224238988,-500.0,0.00015697,2]
[399267901,1766224238998,-500.0,0.00015697,2]
[399267902,1766224239008,-1543.65,0.00015737,2]
[399267903,1766224239017,-500.0,0.00015747,2]
[399267904,1766224239028,-9552.16786547,0.00015747,2]
[399267905,1766224239037,-500.0,0.00015747,2]
[399267906,1766224239046,-500.0,0.00015747,2]
[399267907,1766224239056,-500.0,0.00015747,2]
[399267908,1766224239065,-500.0,0.00015747,2]
[399267909,1766224239075,-1000.0,0.00015747,2]
[399267910,1766224239084,-500.0,0.00015747,2]
[399267911,1766224239094,-1000.0,0.00015747,2]
[399267912,1766224239104,-500.0,0.00015747,2]
[399267913,1766224239113,-1000.0,0.00015747,2]
[399267914,1766224239122,-500.0,0.00015747,2]
[399267915,1766224239132,-1000.0,0.00015747,2]
[399267916,1766224239141,-1000.0,0.00015747,2]
[399267917,1766224239151,-500.0,0.00015747,2]
[399267918,1766224239161,-500.0,0.00015747,2]
[399267919,1766224239171,-1000.0,0.00015747,2]
[399267920,1766224239180,-151.0,0.00015747,2]
[399267921,1766224239190,-500.0,0.00015747,2]
[399267922,1766224239199,-1000.0,0.00015747,2]
[399267923,1766224239208,-970.77463272,0.00015747,2]
[399267924,1766224239217,-1000.0,0.00015747,2]
[399267925,1766224239227,-1000.0,0.00015747,2]
[399267926,1766224239237,-1000.0,0.00015747,2]
[399267927,1766224239247,-1000.0,0.00015747,2]
[399267928,1766224239256,-1000.0,0.00015747,2]
[399267929,1766224239265,-1000.0,0.00015747,2]
[399267930,1766224239274,-1000.0,0.00015747,2]
[399267931,1766224239283,-209.40437684,0.00015747,2]
[399267932,1766224239532,-1000.0,0.00015747,2]
[399267933,1766224239542,-574.12855637,0.00015747,2]
[399267934,1766224239551,-267.97401367,0.00015747,2]
[399267935,1766224239561,-620.0,0.00015747,2]
[399267936,1766224239569,-152.47844731,0.00015747,2]
[399267937,1766224239578,-300.0,0.00015747,2]
[399267938,1766224239587,-5000.0,0.00015747,2]
[399267939,1766224239596,-5000.0,0.00015747,2]
[399267940,1766224239605,-500.0,0.00015747,2]
[399267941,1766224239614,-5000.0,0.00015747,2]
[399267942,1766224239623,-500.0,0.00015747,2]
[399267943,1766224239632,-5000.0,0.00015747,2]
[399267944,1766224239641,-500.0,0.00015747,2]
[399267945,1766224239650,-500.0,0.00015747,2]
[399267946,1766224239659,-1722.43969839,0.00015747,2]
[399267947,1766224239668,-531.95847037,0.00015747,2]
[399267948,1766224239678,-153.78508436,0.00015747,2]
[399267949,1766224239686,-1037.0,0.00015747,2]
[399267950,1766224239695,-500.0,0.00015747,2]
[399267951,1766224239704,-500.0,0.00015747,2]
[399267952,1766224239713,-500.0,0.00015747,2]
[399267953,1766224239722,-500.0,0.00015747,2]
[399267954,1766224239731,-500.0,0.00015747,2]
[399267955,1766224239740,-500.0,0.00015747,2]
[399267956,1766224239749,-500.0,0.00015747,2]
[399267957,1766224239758,-407.21754602,0.00015747,2]
[399267958,1766224239767,-200.0,0.00015747,2]
[399267959,1766224239776,-207.4,0.00015747,2]
[399267960,1766224239785,-215.0738,0.00015747,2]
[399267961,1766224239794,-223.0315306,0.00015747,2]
[399267962,1766224239803,-231.28369723,0.00015747,2]
[399267963,1766224239813,-239.84119403,0.00015747,2]
[399267964,1766224239822,-248.71531821,0.00015747,2]
[399267965,1766224239834,-257.91778498,0.00015747,2]
[399267966,1766224239843,-267.46074303,0.00015747,2]
[399267967,1766224239852,-277.35679052,0.00015747,2]
[399267968,1766224239863,-183.35200331,0.000158,2]
[399267969,1766224239874,-847.79424943,0.000158,2]
[399267970,1766224239884,-9905.5980765,0.00015802,2]
[399267971,1766224239893,-500.0,0.00015828,2]
[399267972,1766224239902,-500.0,0.00015828,2]
[399267973,1766224239911,-500.0,0.00015828,2]
[399267974,1766224239921,-500.0,0.00015828,2]
[399267975,1766224239931,-500.0,0.00015828,2]
[399267976,1766224239940,-500.0,0.00015828,2]
[399267977,1766224239950,-500.0,0.00015828,2]
[399267978,1766224239959,-500.0,0.00015828,2]
[399267979,1766224239970,-10272.10520533,0.00015857,2]
[399267980,1766224239979,-166.66,0.00015899,2]
[399267981,1766224239990,-10652.17309792,0.00015912,2]
[399267982,1766224240000,-11046.30350255,0.00015967,2]
[399267983,1766224240009,-500.0,0.00015984,2]
[399267984,1766224240018,-500.0,0.00015984,2]
[399267985,1766224240027,-500.0,0.00015984,2]
[399267986,1766224240036,-168.0,0.00016008,2]
[399267987,1766224240045,-11455.01673214,0.00016022,2]
[399267988,1766224240053,-1523.0,0.00016073,2]
[399267989,1766224240062,-11878.85235123,0.00016077,2]
[399267990,1766224240071,-168.0,0.00016091,2]
[399267991,1766224240081,-1523.0,0.00016127,2]
[399267992,1766224240090,-12318.36988823,0.00016132,2]
[399267993,1766224240099,-847.79424943,0.00016166,2]
[399267994,1766224240108,-2853.8880111,0.00016186,2]
[399267995,1766224240117,-1512.0445723,0.00016187,2]
[399267996,1766224240127,-3836.336,0.00016191,2]
[399267997,1766224240137,-214.44,0.00016191,2]
[399267998,1766224240147,-900.0,0.00016191,2]
[399267999,1766224240155,-168.0,0.00016262,2]
[399268000,1766224240165,-168.0,0.00016263,2]
[399268001,1766224240174,-217.15233878,0.00016295,2]
[399268002,1766224240183,-595.37131296,0.00016295,2]
[399268003,1766224240192,-500.0,0.000163,2]
[399268004,1766224240201,-500.59670517,0.000163,2]
[399268005,1766224240211,-500.0,0.000163,2]
[399268006,1766224240220,-162.24077786,0.000163,2]
[399268007,1766224240229,-500.0,0.000163,2]
[399268008,1766224240238,-500.0,0.000163,2]
[399268009,1766224240247,-330.6916765,0.000163,2]
[399268010,1766224240256,-590.13268338,0.000163,2]
[399268011,1766224240265,-500.0,0.000163,2]
[399268012,1766224240275,-333.44713486,0.000163,2]
[399268013,1766224240283,-500.0,0.000163,2]
[399268014,1766224240293,-162.03877535,0.000163,2]
[399268015,1766224240302,-500.0,0.000163,2]
[399268016,1766224240311,-500.48687625,0.000163,2]
[399268017,1766224240320,-452.09330567,0.000163,2]
[399268018,1766224240329,-500.5692733,0.000163,2]
[399268019,1766224240339,-500.0,0.000163,2]
[399268021,1766224240348,-500.0,0.000163,2]
[399268023,1766224240358,-518.77690272,0.000163,2]
[399268025,1766224240368,-334.5464899,0.000163,2]
[399268026,1766224240377,-570.20028222,0.000163,2]
[399268027,1766224240388,-500.4308882,0.000163,2]
[399268028,1766224240397,-500.30081252,0.000163,2]
[399268029,1766224240407,-500.0,0.000163,2]
[399268030,1766224240417,-500.0,0.000163,2]
[399268031,1766224240427,-500.5161197,0.000163,2]
[399268032,1766224240436,-168.09419939,0.000163,2]
[399268033,1766224240446,-500.0,0.000163,2]
[399268034,1766224240455,-500.37407939,0.000163,2]
[399268035,1766224240465,-500.19600128,0.000163,2]
[399268036,1766224240474,-555.87900727,0.000163,2]
[399268037,1766224240483,-500.0,0.000163,2]
[399268038,1766224240492,-160.176,0.000163,2]
[399268039,1766224240501,-160.176,0.000163,2]
[399268040,1766224240510,-500.0,0.000163,2]
[399268041,1766224240520,-500.0,0.000163,2]
[399268042,1766224240529,-177.2862913,0.000163,2]
[399268043,1766224240538,-426.51211002,0.000163,2]
[399268044,1766224240547,-160.176,0.000163,2]
[399268045,1766224240556,-500.29716194,0.000163,2]
[399268046,1766224240565,-500.0,0.000163,2]
[399268047,1766224240575,-160.176,0.000163,2]
[399268048,1766224240583,-160.176,0.000163,2]
[399268049,1766224240592,-160.176,0.000163,2]
[399268050,1766224240601,-160.176,0.000163,2]
[399268051,1766224240610,-500.0,0.000163,2]
[399268052,1766224240620,-160.176,0.000163,2]
[399268053,1766224240631,-500.0,0.000163,2]
[399268054,1766224240641,-160.176,0.000163,2]
[399268055,1766224240652,-160.176,0.000163,2]
[399268056,1766224240661,-160.176,0.000163,2]
[399268057,1766224240670,-500.0,0.000163,2]
[399268058,1766224240679,-500.33069287,0.000163,2]
[399268059,1766224240688,-500.0,0.000163,2]
[399268060,1766224240697,-162.35722153,0.000163,2]
[399268061,1766224240707,-500.0,0.000163,2]
[399268062,1766224240716,-160.176,0.000163,2]
[399268063,1766224240725,-500.0,0.000163,2]
[399268065,1766224240734,-500.0,0.000163,2]
[399268067,1766224240743,-543.08632529,0.000163,2]
[399268069,1766224240753,-500.30832876,0.000163,2]
[399268071,1766224240762,-577.20648211,0.000163,2]
[399268073,1766224240774,-500.0,0.000163,2]
[399268075,1766224240783,-500.0,0.000163,2]
[399268077,1766224240792,-160.176,0.000163,2]
[399268079,1766224240802,-160.176,0.000163,2]
[399268081,1766224240811,-160.176,0.000163,2]
[399268083,1766224240821,-160.176,0.000163,2]
[399268085,1766224240830,-500.21661931,0.000163,2]
[399268087,1766224240839,-160.176,0.000163,2]
[399268089,1766224240848,-160.176,0.000163,2]
[399268091,1766224240857,-160.176,0.000163,2]
[399268092,1766224240868,-160.176,0.000163,2]
[399268093,1766224240877,-500.44010865,0.000163,2]
[399268094,1766224240887,-160.176,0.000163,2]
[399268095,1766224240896,-160.176,0.000163,2]
[399268096,1766224240905,-150.165,0.000163,2]
[399268097,1766224240915,-500.0,0.000163,2]
[399268098,1766224240924,-500.0,0.000163,2]
[399268099,1766224240934,-500.0,0.000163,2]
[399268100,1766224240943,-166.91561833,0.000163,2]
[399268101,1766224240952,-529.96646376,0.000163,2]
[399268102,1766224240961,-500.45922425,0.000163,2]
[399268103,1766224240971,-523.00588269,0.000163,2]
[399268104,1766224240980,-500.0,0.000163,2]
[399268105,1766224240989,-161.07996631,0.000163,2]
[399268106,1766224240998,-500.0,0.000163,2]
[399268107,1766224241007,-468.55909228,0.000163,2]
[399268108,1766224241016,-500.0,0.000163,2]
[399268109,1766224241025,-500.16141079,0.000163,2]
[399268110,1766224241034,-500.0,0.000163,2]
[399268111,1766224241043,-500.0,0.000163,2]
[399268112,1766224241052,-516.37835686,0.000163,2]
[399268113,1766224241062,-159.43095819,0.000163,2]
[399268114,1766224241071,-500.0,0.000163,2]
[399268115,1766224241080,-10000.0,0.00016338,2]
[399268116,1766224241089,-500.0,0.00016369,2]
[399268117,1766224241099,-500.0,0.00016369,2]
[399268118,1766224241108,-500.0,0.00016369,2]
[399268119,1766224241117,-1523.0,0.00016387,2]
[399268120,1766224241127,-1523.0,0.00016396,2]
[399268121,1766224241136,-228.0,0.000164,2]
[399268122,1766224241146,-319.0,0.000164,2]
[399268123,1766224241156,-182.0,0.000164,2]
[399268124,1766224241165,-183.63284637,0.000164,2]
[399268125,1766224241175,-1000.0,0.000164,2]
[399268126,1766224241184,-168.0,0.00016401,2]
[399268127,1766224241194,-166.66,0.00016407,2]
[399268128,1766224241203,-168.0,0.00016417,2]
[399268129,1766224241212,-1523.0,0.00016426,2]
[399268130,1766224241221,-500.0,0.00016438,2]
[399268131,1766224241231,-500.0,0.00016438,2]
[399268132,1766224241240,-500.0,0.00016438,2]
[399268133,1766224241250,-500.0,0.00016438,2]
[399268134,1766224241259,-500.0,0.00016438,2]
[399268135,1766224241268,-500.0,0.00016438,2]
[399268136,1766224241277,-500.0,0.00016438,2]
[399268137,1766224241286,-500.0,0.00016438,2]
[399268138,1766224241295,-500.0,0.00016438,2]
[399268139,1766224241305,-500.0,0.00016438,2]
[399268140,1766224241314,-500.0,0.00016438,2]
[399268141,1766224241323,-500.0,0.00016438,2]
[399268142,1766224241333,-500.0,0.00016438,2]
[399268143,1766224241342,-500.0,0.00016438,2]
[399268144,1766224241351,-500.0,0.00016438,2]
[399268145,1766224241361,-500.0,0.00016438,2]
[399268146,1766224241370,-500.0,0.00016438,2]
[399268147,1766224241379,-500.0,0.00016438,2]
[399268148,1766224241388,-500.0,0.00016438,2]
[399268149,1766224241398,-500.0,0.00016438,2]
[399268150,1766224241407,-500.0,0.00016438,2]
[399268151,1766224241416,-500.0,0.00016438,2]
[399268152,1766224241425,-500.0,0.00016438,2]
[399268153,1766224241435,-500.0,0.00016438,2]
[399268154,1766224241444,-500.0,0.00016438,2]
[399268155,1766224241453,-500.0,0.00016438,2]
[399268156,1766224241462,-500.0,0.00016438,2]
[399268157,1766224241471,-500.0,0.00016438,2]
[399268158,1766224241480,-500.0,0.00016438,2]
[399268159,1766224241489,-500.0,0.00016438,2]
[399268160,1766224241498,-500.0,0.00016438,2]
[399268161,1766224241508,-500.0,0.00016438,2]
[399268162,1766224241517,-500.0,0.00016438,2]
[399268163,1766224241526,-500.0,0.00016438,2]
[399268164,1766224241535,-500.0,0.00016438,2]
[399268165,1766224241544,-500.0,0.00016438,2]
[399268166,1766224241554,-500.0,0.00016438,2]
[399268167,1766224241563,-500.0,0.00016438,2]
[399268168,1766224241572,-500.0,0.00016438,2]
[399268169,1766224241581,-245.50916215,0.00016438,2]
[399268170,1766224241590,-500.0,0.00016438,2]
[399268171,1766224241599,-500.0,0.00016438,2]
[399268172,1766224241608,-500.0,0.00016438,2]
[399268173,1766224241617,-500.0,0.00016438,2]
[399268174,1766224241626,-500.0,0.00016438,2]
[399268175,1766224241635,-500.0,0.00016438,2]
[399268176,1766224241644,-500.0,0.00016438,2]
[399268177,1766224241654,-500.0,0.00016438,2]
[399268178,1766224241663,-500.0,0.00016438,2]
[399268179,1766224241672,-500.0,0.00016438,2]
[399268180,1766224241681,-500.0,0.00016438,2]
[399268181,1766224241690,-500.0,0.00016438,2]
[399268182,1766224241699,-500.0,0.00016438,2]
[399268183,1766224241708,-500.0,0.00016438,2]
[399268184,1766224241717,-500.0,0.00016438,2]
[399268185,1766224241726,-500.0,0.00016438,2]
[399268186,1766224241735,-500.0,0.00016438,2]
[399268187,1766224241744,-500.0,0.00016438,2]
[399268188,1766224241754,-500.0,0.00016438,2]
[399268189,1766224241763,-500.0,0.00016438,2]
[399268190,1766224241776,-500.0,0.00016438,2]
[399268191,1766224241785,-500.0,0.00016438,2]
[399268192,1766224241794,-500.0,0.00016438,2]
[399268193,1766224241803,-500.0,0.00016438,2]
[399268194,1766224241814,-500.0,0.00016438,2]
[399268195,1766224241823,-500.0,0.00016438,2]
[399268196,1766224241832,-500.0,0.00016438,2]
[399268197,1766224241842,-500.0,0.00016438,2]
[399268198,1766224241851,-500.0,0.00016438,2]
[399268199,1766224241860,-500.0,0.00016438,2]
[399268200,1766224241870,-500.0,0.00016438,2]
[399268201,1766224241879,-500.0,0.00016438,2]
[399268202,1766224241888,-500.0,0.00016438,2]
[399268203,1766224241897,-500.0,0.00016438,2]
[399268204,1766224241907,-500.0,0.00016438,2]
[399268205,1766224241916,-500.0,0.00016438,2]
[399268206,1766224241925,-500.0,0.00016438,2]
[399268207,1766224241935,-500.0,0.00016438,2]
[399268208,1766224241944,-500.0,0.00016438,2]
[399268209,1766224241954,-800.0,0.00016438,2]
[399268210,1766224241964,-164.42,0.0001644,2]
[399268211,1766224241973,-500.0,0.000165,2]
[399268212,1766224241983,-847.79424943,0.00016533,2]
[399268213,1766224241992,-168.0,0.00016542,2]
[399268214,1766224242003,-168.0,0.00016581,2]
[399268215,1766224242012,-1000.0,0.000166,2]
[399268216,1766224242021,-168.0,0.00016644,2]
[399268217,1766224242032,-9984.9090709,0.0001666,2]
[399268218,1766224242042,-500.0,0.00016711,2]
[399268219,1766224242051,-500.0,0.00016711,2]
[399268220,1766224242060,-500.0,0.00016712,2]
[399268221,1766224242070,-500.0,0.00016712,2]
[399268222,1766224242081,-150.0,0.00016712,2]
[399268223,1766224242090,-151.61208378,0.00016712,2]
[399268224,1766224242101,-500.0,0.00016712,2]
[399268225,1766224242112,-500.0,0.00016712,2]
[399268226,1766224242122,-500.0,0.00016712,2]
[399268227,1766224242131,-500.0,0.00016712,2]
[399268228,1766224242140,-813.0,0.00016712,2]
[399268229,1766224242149,-500.0,0.00016712,2]
[399268230,1766224242158,-150.0,0.00016712,2]
[399268231,1766224242169,-500.0,0.00016712,2]
[399268232,1766224242178,-150.0,0.00016712,2]
[399268233,1766224242187,-659.0,0.00016712,2]
[399268234,1766224242196,-150.0,0.00016712,2]
[399268235,1766224242205,-500.0,0.00016712,2]
[399268236,1766224242214,-150.0,0.00016712,2]
[399268237,1766224242223,-500.0,0.00016712,2]
[399268238,1766224242232,-167.75,0.00016712,2]
[399268239,1766224242241,-1523.0,0.0001675,2]
[399268240,1766224242250,-168.0,0.00016833,2]
[399268241,1766224242259,-268.50960352,0.00016843,2]
[399268242,1766224242268,-617.40005154,0.00016843,2]
[399268243,1766224242277,-500.0,0.00016847,2]
[399268244,1766224242286,-1001.04801864,0.00016848,2]
[399268245,1766224242295,-221.90485079,0.00016848,2]
[399268246,1766224242304,-1000.0,0.00016848,2]
[399268247,1766224242313,-1001.13256122,0.00016848,2]
[399268248,1766224242324,-179.47316237,0.00016848,2]
[399268249,1766224242333,-1000.87754816,0.00016848,2]
[399268250,1766224242342,-1001.01249642,0.00016848,2]
[399268251,1766224242351,-1001.02020729,0.00016848,2]
[399268252,1766224242361,-1000.0,0.00016848,2]
[399268253,1766224242370,-1002.26047729,0.00016848,2]
[399268254,1766224242381,-1000.91698308,0.00016848,2]
[399268255,1766224242390,-1001.31913615,0.00016848,2]
[399268256,1766224242399,-1001.04078122,0.00016848,2]
[399268257,1766224242409,-1000.87355102,0.00016848,2]
[399268258,1766224242418,-1001.0881382,0.00016848,2]
[399268259,1766224242427,-500.65137842,0.00016848,2]
[399268260,1766224242436,-1001.0574546,0.00016848,2]
[399268261,1766224242446,-1001.39291005,0.00016848,2]
[399268262,1766224242455,-1000.0,0.00016848,2]
[399268263,1766224242464,-1000.76703223,0.00016848,2]
[399268264,1766224242474,-1001.19540644,0.00016848,2]
[399268265,1766224242483,-1000.0,0.00016848,2]
[399268266,1766224242492,-1001.82577211,0.00016848,2]
[399268267,1766224242502,-1000.0,0.00016848,2]
[399268268,1766224242511,-1000.0,0.00016848,2]
[399268269,1766224242521,-1001.94292641,0.00016848,2]
[399268270,1766224242530,-1000.0,0.00016848,2]
[399268271,1766224242539,-501.11789279,0.00016848,2]
[399268272,1766224242549,-1000.83354161,0.00016848,2]
[399268273,1766224242558,-1000.96314567,0.00016848,2]
[399268274,1766224242568,-501.13881872,0.00016848,2]
[399268275,1766224242577,-1000.866265,0.00016848,2]
[399268276,1766224242587,-1000.0,0.00016848,2]
[399268277,1766224242597,-500.58632088,0.00016848,2]
[399268278,1766224242607,-3062.88616465,0.00016849,2]
[399268279,1766224242726,-8127.11383535,0.00016849,2]
[399268280,1766224242734,-500.0,0.00016849,2]
[399268281,1766224242743,-500.0,0.00016849,2]
[399268282,1766224242752,-150.0,0.00016849,2]
[399268283,1766224242762,-500.0,0.00016849,2]
[399268284,1766224242771,-500.0,0.00016849,2]
[399268285,1766224242780,-500.0,0.00016849,2]
[399268286,1766224242789,-500.0,0.00016849,2]
[399268287,1766224242798,-813.0,0.00016849,2]
[399268288,1766224242807,-500.0,0.00016849,2]
[399268289,1766224242816,-150.0,0.00016849,2]
[399268290,1766224242825,-659.0,0.00016849,2]
[399268291,1766224242833,-500.0,0.00016849,2]
[399268292,1766224242842,-200.0,0.00016849,2]
[399268293,1766224242851,-500.0,0.00016849,2]
[399268294,1766224242860,-500.0,0.00016849,2]
[399268295,1766224242868,-200.0,0.00016863,2]
[399268296,1766224242877,-200.0,0.00016864,2]
[399268297,1766224242886,-200.0,0.00016864,2]
[399268298,1766224242895,-200.0,0.00016864,2]
[399268299,1766224242904,-158.81409509,0.00016873,2]
[399268300,1766224242913,-202.48498922,0.00016899,2]
[399268301,1766224242922,-500.0,0.00016899,2]
[399268302,1766224242931,-500.0,0.00016899,2]
[399268303,1766224242940,-500.0,0.00016899,2]
[399268304,1766224242949,-500.0,0.00016899,2]
[399268305,1766224242958,-500.0,0.00016899,2]
[399268306,1766224242967,-277.0036062,0.000169,2]
[399268307,1766224242976,-10070.4907,0.000169,2]
[399268308,1766224242985,-713.47285421,0.000169,2]
[399268309,1766224242994,-228.90994047,0.000169,2]
[399268310,1766224243003,-183.35200331,0.000169,2]
[399268311,1766224243012,-847.79424943,0.000169,2]
[399268312,1766224243021,-181.47081458,0.000169,2]
[399268313,1766224243030,-150.34870908,0.000169,2]
[399268314,1766224243039,-170.0006961,0.000169,2]
[399268315,1766224243048,-166.66,0.00016915,2]
[399268316,1766224243057,-18112.63,0.00016922,2]
[399268317,1766224243066,-150.0,0.00016973,2]
[399268318,1766224243076,-150.0,0.00016973,2]
[399268319,1766224243086,-500.0,0.00016986,2]
[399268320,1766224243095,-500.0,0.00016986,2]
[399268321,1766224243104,-150.0,0.00016986,2]
[399268322,1766224243113,-500.0,0.00016986,2]
[399268323,1766224243122,-500.0,0.00016986,2]
[399268324,1766224243132,-500.0,0.00016986,2]
[399268325,1766224243141,-500.0,0.00016986,2]
[399268326,1766224243152,-813.0,0.00016986,2]
[399268327,1766224243161,-500.0,0.00016986,2]
[399268328,1766224243171,-200.0,0.00016986,2]
[399268329,1766224243180,-659.0,0.00016986,2]
[399268331,1766224243190,-500.0,0.00016986,2]
[399268332,1766224243199,-500.0,0.00016986,2]
[399268333,1766224243209,-500.0,0.00016986,2]
[399268334,1766224243220,-52831.42,0.00016986,2]
[399268335,1766224243231,-240.0,0.00016998,2]
[399268336,1766224243241,-500.0,0.00016998,2]
[399268337,1766224243253,-500.0,0.00016998,2]
[399268338,1766224243262,-500.0,0.00016998,2]
[399268339,1766224243271,-1500.0,0.00016998,2]
[399268340,1766224243281,-1500.0,0.00016998,2]
[399268341,1766224243291,-1527.47643038,0.00016998,2]
[399268342,1766224243300,-151.61,0.00016999,2]
[399268343,1766224243310,-391.52136296,0.00016999,2]
[399268344,1766224243321,-500.0,0.00016999,2]
[399268345,1766224243332,-513.13109184,0.00016999,2]
[399268346,1766224243341,-500.0,0.00016999,2]
[399268347,1766224243351,-500.0,0.00016999,2]
[399268348,1766224243361,-500.0,0.00016999,2]
[399268349,1766224243370,-500.0,0.00016999,2]
[399268350,1766224243559,-500.0,0.00016999,2]
[399268351,1766224243569,-500.0,0.00016999,2]
[399268352,1766224243579,-500.0,0.00016999,2]
[399268353,1766224243588,-500.0,0.00016999,2]
[399268354,1766224243597,-500.0,0.00016999,2]
[399268355,1766224243606,-500.0,0.00016999,2]
[399268356,1766224243615,-500.0,0.00016999,2]
[399268357,1766224243624,-500.0,0.00016999,2]
[399268358,1766224243633,-500.0,0.00016999,2]
[399268359,1766224243643,-500.0,0.00016999,2]
[399268360,1766224243651,-500.0,0.00016999,2]
[399268361,1766224243661,-500.0,0.00016999,2]
[399268362,1766224243670,-500.0,0.00016999,2]
[399268363,1766224243679,-500.0,0.00016999,2]
[399268364,1766224243688,-500.0,0.00016999,2]
[399268365,1766224243697,-500.0,0.00016999,2]
[399268366,1766224243707,-500.0,0.00016999,2]
[399268368,1766224243716,-500.0,0.00016999,2]
[399268370,1766224243725,-500.0,0.00016999,2]
[399268372,1766224243734,-500.0,0.00016999,2]
[399268374,1766224243743,-500.0,0.00016999,2]
[399268376,1766224243752,-532723.05503324,0.00017,2]
[399268380,1766224243836,-115681.816196,0.00017,2]
[399268381,1766224243851,-566.619821,0.00017,2]
[399268382,1766224243869,-6176.93849631,0.00017,2]
[399268383,1766224243880,-449.53015002,0.00017,2]